bitfinex-derivatives/quotes_BTCF0:USTF0_20251210
["timestamp","ask_amount","ask_price","bid_price","bid_amount"]
[1765410702120,0.06346,92121.0,92120.0,0.1474053]
[1765410702423,0.06346,92121.0,92120.0,0.11822936]
[1765410702623,0.06346,92121.0,92120.0,0.62250936]
[1765410702923,0.42426,92121.0,92120.0,0.03375678]
[1765410705328,0.42426,92121.0,92120.0,0.06338678]
[1765410707032,0.42426,92121.0,92120.0,0.03375678]
[1765410708926,0.42426,92121.0,92120.0,0.09040678]
[1765410712324,0.42426,92121.0,92120.0,0.03375678]
[1765410712719,0.06346,92121.0,92120.0,0.03375678]
[1765410713528,0.42426,92121.0,92120.0,0.03375678]
[1765410715428,0.42426,92121.0,92120.0,0.09040678]
[1765410715627,0.06346,92121.0,92120.0,0.09040678]
[1765410717934,0.42426,92121.0,92120.0,0.09040678]
[1765410719135,0.42426,92121.0,92120.0,0.06338678]
[1765410719936,0.42426,92121.0,92120.0,0.09267678]
[1765410721934,0.42426,92121.0,92120.0,0.12185262]
[1765410722134,0.42426,92121.0,92120.0,0.09267678]
[1765410722319,0.42426,92121.0,92120.0,0.12185262]
[1765410723331,0.42426,92121.0,92120.0,0.10964715]
[1765410724922,0.4351133,92121.0,92120.0,0.12050055]
[1765410725934,0.4351133,92121.0,92120.0,0.10964715]
[1765410726335,0.4351133,92121.0,92120.0,0.14693402]
[1765410727741,0.4351133,92121.0,92120.0,0.10798715]
[1765410729339,0.4351133,92121.0,92120.0,0.07869715]
[1765410729532,0.0669752,92105.0,92104.0,0.00016286]
[1765410729841,0.0669752,92105.0,92104.0,0.02947854]
[1765410730038,0.05612,92105.0,92104.0,0.06827816]
[1765410730334,0.0405052,92105.0,92104.0,0.02911286]
[1765410730538,0.0863852,92105.0,92104.0,0.05866286]
[1765410731634,0.0873852,92105.0,92104.0,0.05866286]
[1765410731941,0.0873852,92105.0,92104.0,0.06066286]
[1765410732529,0.0873852,92105.0,92104.0,0.08995688]
[1765410732729,0.0873852,92105.0,92104.0,0.06066286]
[1765410733131,0.0873852,92105.0,92104.0,0.08995209]
[1765410733734,0.0873852,92105.0,92104.0,0.06040209]
[1765410733934,0.0873852,92105.0,92104.0,0.03111286]
[1765410734239,0.0873852,92105.0,92104.0,0.00216286]
[1765410736044,0.0873852,92105.0,92091.0,0.02928923]
[1765410736045,0.0695366,92093.0,92091.0,0.02928923]
[1765410736231,0.05868,92091.0,92090.0,0.0010859]
[1765410737239,0.06963676,92091.0,92090.0,0.0010859]
[1765410738048,0.07063676,92091.0,92090.0,0.0140859]
[1765410738445,0.07063676,92091.0,92090.0,0.0020859]
[1765410738446,0.07263676,92091.0,92090.0,0.0020859]
[1765410738652,0.06168,92091.0,92090.0,0.0310359]
[1765410739854,0.06168,92091.0,92090.0,0.0020859]
[1765410740853,0.06168,92091.0,92090.0,0.0605859]
[1765410752759,0.06168,92091.0,92090.0,0.09428629]
[1765410755748,0.003,92091.0,92090.0,0.09428629]
[1765410755956,0.003,92091.0,92090.0,0.46871629]
[1765410756357,0.003,92091.0,92090.0,0.49800552]
[1765410756869,0.003,92091.0,92090.0,0.46871629]
[1765410757653,0.0721168,92091.0,92090.0,0.45508629]
[1765410758158,0.0721168,92091.0,92090.0,0.09428629]
[1765410758364,0.0721168,92091.0,92090.0,0.12353565]
[1765410758861,0.0721168,92091.0,92090.0,0.09428629]
[1765410771175,0.0721168,92091.0,92090.0,0.10514319]
[1765410774176,0.0721168,92091.0,92090.0,0.09428629]
[1765410776775,0.0721168,92091.0,92082.0,0.03901757]
[1765410776776,0.0108578,92083.0,92082.0,0.03901757]
[1765410776966,0.05826,92082.0,92081.0,0.02932286]
[1765410777166,0.05826,92082.0,92081.0,0.05925286]
[1765410779278,0.05826,92082.0,92081.0,0.08955474]
[1765410779681,0.06026,92082.0,92081.0,0.09055474]
[1765410780384,0.06026,92082.0,92081.0,0.06125286]
[1765410780572,0.06026,92082.0,92081.0,0.03132286]
[1765410781480,0.06026,92082.0,92081.0,0.08828474]
[1765410781682,0.06026,92082.0,92081.0,0.05898286]
[1765410781877,0.42106,92082.0,92081.0,0.05898286]
[1765410784978,0.42106,92082.0,92081.0,0.03132286]
[1765410786875,0.42106,92082.0,92081.0,0.00216286]
[1765410787084,0.42106,92082.0,92069.0,9.627e-05]
[1765410787085,0.05588,92070.0,92069.0,9.627e-05]
[1765410787375,0.05588,92070.0,92065.0,0.0010862]
[1765410787376,0.05588,92066.0,92065.0,0.0010862]
[1765410788283,0.05597627,92066.0,92065.0,0.0010862]
[1765410788676,0.14408646,92066.0,92065.0,0.0291962]
[1765410788878,0.05597627,92066.0,92065.0,0.06190575]
[1765410789594,0.05597627,92066.0,92065.0,0.09056575]
[1765410790087,0.05697627,92066.0,92065.0,0.03579575]
[1765410790676,0.41777627,92066.0,92065.0,0.03579575]
[1765410790878,0.41777627,92066.0,92065.0,0.0030862]
[1765410791178,0.41777627,92066.0,92065.0,0.0322962]
[1765410791972,0.05697627,92066.0,92065.0,0.0322962]
[1765410793279,0.14242856,92066.0,92065.0,0.0322962]
[1765410793483,0.05697627,92066.0,92065.0,0.0322962]
[1765410797187,0.14319293,92066.0,92065.0,0.0322962]
[1765410797388,0.05697627,92066.0,92065.0,0.0322962]
[1765410799596,0.05697627,92066.0,92065.0,0.0619062]
[1765410801688,0.14291489,92066.0,92065.0,0.0619062]
[1765410803491,0.14291489,92066.0,92065.0,0.0322962]
[1765410803691,0.14291489,92066.0,92065.0,0.0030862]
[1765410805793,0.14291489,92066.0,92065.0,0.0322962]
[1765410806593,0.14291489,92066.0,92065.0,0.0030862]
[1765410807685,0.14291489,92066.0,92065.0,0.03723452]
[1765410808895,0.14291489,92066.0,92065.0,0.0030862]
[1765410809091,0.0678908,92057.0,92056.0,0.05712286]
[1765410809286,0.4286908,92057.0,92056.0,0.0341604]
[1765410809484,0.0678922,92045.0,92044.0,0.0862444]
[1765410809686,0.06798847,92045.0,92044.0,0.09112015]
[1765410810694,0.06898847,92045.0,92044.0,0.10412015]
[1765410811780,0.06898847,92045.0,92044.0,0.09312015]
[1765410814797,0.00109627,92045.0,92044.0,0.09312015]
[1765410815097,0.00109627,92045.0,92044.0,0.10823015]
[1765410821702,0.00109627,92045.0,92044.0,0.46903015]
[1765410821903,0.00109627,92045.0,92044.0,0.45392015]
[1765410822103,0.05812627,92045.0,92044.0,0.45392015]
[1765410823505,0.05812627,92045.0,92044.0,0.09312015]
[1765410825095,0.00109627,92045.0,92044.0,0.09312015]
[1765410827904,0.05812627,92045.0,92044.0,0.09312015]
[1765410828693,0.05812627,92045.0,92044.0,0.03616015]
[1765410828895,0.05703,92041.0,92040.0,0.00108649]
[1765410829906,0.05803,92041.0,92040.0,0.00708649]
[1765410830204,0.05803,92041.0,92040.0,0.07004649]
[1765410830205,0.05903,92041.0,92040.0,0.07004649]
[1765410830995,0.05903,92041.0,92040.0,0.01308649]
[1765410831298,0.05903,92041.0,92040.0,0.07004649]
[1765410834411,0.41983,92041.0,92040.0,0.07004649]
[1765410837312,0.41983,92041.0,92040.0,0.04030649]
[1765410838113,0.41983,92041.0,92040.0,0.01308649]
[1765410838514,0.41983,92041.0,92040.0,0.04010649]
[1765410839016,0.41983,92041.0,92040.0,0.01308649]
[1765410840913,0.41983,92041.0,92040.0,0.05037118]
[1765410841412,0.0661438,92032.0,92031.0,0.02702]
[1765410841619,0.42704007,92032.0,92031.0,0.02702]
[1765410842410,0.42704007,92032.0,92031.0,0.05633]
[1765410842610,0.43004007,92032.0,92031.0,0.07633]
[1765410843707,0.06924007,92032.0,92031.0,0.07633]
[1765410847113,0.01396007,92032.0,92031.0,0.07633]
[1765410847311,0.00309627,92032.0,92031.0,0.07633]
[1765410848421,0.03093627,92032.0,92031.0,0.07633]
[1765410848622,0.00309627,92032.0,92031.0,0.07633]
[1765410849224,0.00309627,92032.0,92031.0,0.11534757]
[1765410849415,0.00309627,92032.0,92031.0,0.07633]
[1765410849416,0.03093627,92032.0,92031.0,0.07633]
[1765410850221,0.03093627,92032.0,92031.0,0.11534757]
[1765410850719,0.00309627,92032.0,92031.0,0.11534757]
[1765410850921,0.00309627,92032.0,92031.0,0.43713]
[1765410851222,0.03093627,92032.0,92031.0,0.43713]
[1765410852424,0.00309627,92032.0,92031.0,0.43713]
[1765410853326,0.00309627,92032.0,92031.0,0.47355531]
[1765410854326,0.00309627,92032.0,92031.0,0.53195969]
[1765410855019,0.00309627,92032.0,92031.0,0.47355531]
[1765410855218,0.00309627,92032.0,92031.0,0.97783531]
[1765410856032,0.00309627,92032.0,92031.0,1.0556008]
[1765410856235,0.00309627,92032.0,92031.0,0.97783531]
[1765410856734,0.00309627,92032.0,92031.0,0.97787531]
[1765410861451,0.01396007,92032.0,92031.0,0.97787531]
[1765410862447,0.00309627,92032.0,92031.0,0.97787531]
[1765410864252,0.06119627,92032.0,92031.0,0.47355531]
[1765410864453,0.06119627,92032.0,92031.0,1.03639515]
[1765410864942,0.06119627,92032.0,92031.0,1.04725905]
[1765410865141,0.06119627,92032.0,92031.0,0.97779531]
[1765410865348,0.06119627,92032.0,92031.0,1.03639588]
[1765410865549,0.06119627,92032.0,92031.0,0.53215588]
[1765410866152,0.06119627,92032.0,92031.0,0.47355531]
[1765410866454,0.06119627,92032.0,92031.0,0.53215548]
[1765410867559,0.06119627,92032.0,92031.0,0.47355531]
[1765410868451,0.00309627,92032.0,92031.0,0.47355531]
[1765410868650,0.0395513,92053.0,92052.0,0.0689413]
[1765410868855,0.0395513,92053.0,92052.0,0.10536661]
[1765410869043,0.0395513,92053.0,92052.0,0.14443295]
[1765410869242,0.0395513,92053.0,92052.0,0.10536661]
[1765410869648,0.0395513,92053.0,92052.0,0.14443295]
[1765410869951,0.0475513,92053.0,92052.0,0.14643295]
[1765410870143,0.0475513,92053.0,92052.0,0.10736661]
[1765410870347,0.0188613,92053.0,92052.0,0.10736661]
[1765410870542,0.008,92053.0,92052.0,0.10736661]
[1765410870842,0.008,92053.0,92052.0,0.14643295]
[1765410871044,0.008,92053.0,92052.0,0.10736661]
[1765410872355,0.004,92053.0,92052.0,0.10636661]
[1765410872562,0.007,92053.0,92052.0,0.10736661]
[1765410876555,0.0010862,92065.0,92064.0,0.01086]
[1765410876749,0.0010862,92065.0,92064.0,0.60964531]
[1765410878664,0.0060862,92065.0,92064.0,0.61064531]
[1765410878964,0.0110862,92065.0,92064.0,0.61164531]
[1765410879264,0.0010862,92065.0,92064.0,0.60964531]
[1765410879565,0.0070862,92065.0,92064.0,0.61064531]
[1765410879957,0.0040862,92065.0,92064.0,0.61064531]
[1765410880164,0.0050862,92065.0,92064.0,0.61064531]
[1765410881463,0.0588862,92065.0,92064.0,0.61064531]
[1765410881763,0.0608862,92065.0,92064.0,0.61064531]
[1765410881964,0.0050862,92065.0,92064.0,0.61064531]
[1765410882163,0.0337762,92065.0,92064.0,0.61064531]
[1765410882765,0.0608862,92065.0,92064.0,0.61064531]
[1765410883571,0.0788462,92065.0,92064.0,0.61064531]
[1765410885867,0.0050862,92065.0,92064.0,0.61064531]
[1765410886068,0.0788462,92065.0,92064.0,0.61064531]
[1765410886569,0.0050862,92065.0,92064.0,0.61064531]
[1765410887267,0.0337762,92065.0,92064.0,0.61064531]
[1765410887459,0.0788462,92065.0,92064.0,0.61064531]
[1765410890568,0.0788462,92065.0,92064.0,0.64965632]
[1765410894374,0.0788462,92065.0,92064.0,0.07643632]
[1765410894574,0.0788462,92065.0,92064.0,0.03742531]
[1765410895268,0.0788462,92065.0,92064.0,0.09550531]
[1765410895573,0.0788462,92065.0,92064.0,0.03742531]
[1765410896470,0.0788462,92065.0,92064.0,0.09550531]
[1765410897066,0.0788462,92065.0,92064.0,0.1247468]
[1765410897765,0.0788462,92065.0,92064.0,0.12478091]
[1765410898166,0.0788462,92065.0,92064.0,0.09550531]
[1765410902569,0.0050862,92065.0,92064.0,0.09550531]
[1765410903581,0.0050862,92065.0,92064.0,0.15411145]
[1765410904274,0.0785262,92065.0,92064.0,0.09550531]
[1765410904479,0.0785262,92065.0,92064.0,0.15411517]
[1765410904873,0.0785262,92065.0,92064.0,0.09550531]
[1765410908981,0.0785262,92065.0,92064.0,0.03742531]
[1765410909973,0.0785262,92065.0,92056.0,0.029312]
[1765410909974,0.05629,92057.0,92056.0,0.029312]
[1765410910172,0.05629,92056.0,92052.0,0.029312]
[1765410910377,0.05629,92056.0,92051.0,0.029312]
[1765410910687,0.05629,92056.0,92053.0,0.029312]
[1765410911278,0.05729,92056.0,92055.0,0.00916295]
[1765410912284,0.05729,92056.0,92055.0,0.03687295]
[1765410912678,0.05729,92056.0,92055.0,0.06659295]
[1765410912984,0.05829,92056.0,92055.0,0.07659295]
[1765410913488,0.05829,92056.0,92055.0,0.01916295]
[1765410914789,0.05729,92056.0,92055.0,0.01016295]
[1765410915088,0.06129,92056.0,92055.0,0.00116295]
[1765410919088,0.068793,92039.0,92038.0,0.05556]
[1765410919283,0.429593,92039.0,92038.0,0.05556]
[1765410919984,0.44052639,92039.0,92038.0,0.05556]
[1765410921185,0.44352639,92039.0,92038.0,0.07456]
[1765410921781,0.44152639,92039.0,92038.0,0.06656]
[1765410921986,0.44652639,92039.0,92038.0,0.07791701]
[1765410922181,0.44652639,92039.0,92038.0,0.10576701]
[1765410922382,0.44652639,92039.0,92038.0,0.05020701]
[1765410922588,0.44852639,92039.0,92038.0,0.03920701]
[1765410922802,0.44852639,92039.0,92038.0,0.001]
[1765410923188,0.44852639,92039.0,92038.0,0.02983]
[1765410924687,0.44852639,92039.0,92038.0,0.001]
[1765410925905,0.44852639,92039.0,92038.0,0.02983]
[1765410926994,0.437593,92039.0,92038.0,0.09576743]
[1765410927301,0.437593,92039.0,92038.0,0.09576593]
[1765410927502,0.379663,92039.0,92038.0,0.09576593]
[1765410927900,0.407913,92039.0,92038.0,0.09576593]
[1765410928106,0.437903,92039.0,92038.0,0.09576593]
[1765410928902,0.437903,92039.0,92038.0,0.03908593]
[1765410929087,0.437903,92039.0,92038.0,0.09782593]
[1765410929297,0.437903,92039.0,92038.0,0.05974]
[1765410929889,0.437903,92039.0,92038.0,0.09782571]
[1765410931000,0.077103,92039.0,92038.0,0.09782571]
[1765410931201,0.437903,92039.0,92038.0,0.09782571]
[1765410936903,0.437903,92039.0,92038.0,0.06802571]
[1765410937202,0.437903,92039.0,92038.0,0.09782571]
[1765410939402,0.437903,92039.0,92038.0,0.12713771]
[1765410939804,0.437903,92039.0,92038.0,0.09782571]
[1765410940405,0.437903,92039.0,92038.0,0.13690599]
[1765410940702,0.437903,92039.0,92038.0,0.09782571]
[1765410941297,0.0865147,92024.0,92023.0,0.41954]
[1765410941497,0.0865147,92024.0,92023.0,0.05874]
[1765410941999,0.15323286,92033.0,92032.0,0.05874]
[1765410942196,0.0687137,92033.0,92032.0,0.05874]
[1765410943704,0.0717137,92033.0,92032.0,0.05974]
[1765410944408,0.0727137,92033.0,92032.0,0.05974]
[1765410951212,0.0727137,92033.0,92032.0,0.0706038]
[1765410951414,0.0727137,92033.0,92032.0,0.05974]
[1765410952109,0.0727137,92033.0,92032.0,0.0706038]
[1765410953315,0.0727137,92033.0,92032.0,0.10974088]
[1765410960023,0.004,92033.0,92032.0,0.10974088]
[1765410960209,0.004,92033.0,92032.0,0.12244088]
[1765410960414,0.00016295,92042.0,92041.0,0.0657827]
[1765410960719,0.3608,92050.0,92049.0,0.0657818]
[1765410960924,0.3608,92050.0,92049.0,0.10491888]
[1765410961314,0.43459,92050.0,92049.0,0.10491888]
[1765410961512,0.0108612,92054.0,92053.0,0.0108612]
[1765410961715,0.0108612,92054.0,92053.0,0.1635116]
[1765410961920,0.01661,92055.0,92053.0,0.1635116]
[1765410961921,0.07379,92055.0,92054.0,0.05492]
[1765410962116,0.07379,92055.0,92054.0,0.09405708]
[1765410962426,0.01102365,92059.0,92058.0,0.05492]
[1765410962427,0.04030365,92059.0,92058.0,0.05492]
[1765410962625,0.06820365,92059.0,92058.0,0.09405708]
[1765410962822,0.05734295,92059.0,92058.0,0.09405708]
[1765410963016,0.00016295,92059.0,92058.0,0.09405708]
[1765410963714,0.3608,92067.0,92064.0,0.05492]
[1765410964020,0.01661,92070.0,92064.0,0.09405708]
[1765410964916,0.12491918,92074.0,92064.0,0.09405708]
[1765410965131,0.00016295,92074.0,92073.0,0.0657789]
[1765410965421,0.00016295,92074.0,92073.0,0.10491598]
[1765410965819,0.00016295,92074.0,92073.0,0.10489323]
[1765410966728,0.00016295,92074.0,92073.0,0.10589323]
[1765410967230,0.05734295,92074.0,92073.0,0.10589323]
[1765410967525,0.00016295,92074.0,92073.0,0.10689323]
[1765410967726,0.00116295,92074.0,92073.0,0.10689323]
[1765410968632,0.0469759,92090.0,92089.0,0.05492]
[1765410968824,0.0010859,92090.0,92089.0,0.10488867]
[1765410970127,0.00016295,92099.0,92098.0,0.065776]
[1765410970316,0.00108561,92115.0,92114.0,0.0657741]
[1765410971025,0.00108561,92115.0,92114.0,0.1048738]
[1765410971427,0.00408561,92115.0,92114.0,0.1058738]
[1765410971628,0.06126561,92115.0,92114.0,0.1068738]
[1765410972719,0.07211961,92115.0,92114.0,0.0960197]
[1765410973345,0.04421961,92115.0,92114.0,0.0960197]
[1765410973536,0.00408561,92115.0,92114.0,0.0960197]
[1765410973838,0.06126561,92115.0,92114.0,0.0960197]
[1765410975333,0.06126561,92115.0,92114.0,0.13475654]
[1765410976341,0.06126561,92115.0,92114.0,0.0960197]
[1765410978037,0.05826561,92115.0,92114.0,0.0940197]
[1765410978234,0.06126561,92115.0,92114.0,0.0960197]
[1765410979339,0.06126561,92115.0,92114.0,0.15449388]
[1765410979735,0.06126561,92115.0,92114.0,0.09957388]
[1765410979942,0.06126561,92115.0,92114.0,0.0410997]
[1765410980332,0.057,92111.0,92110.0,0.02663055]
[1765410980535,0.07403,92106.0,92105.0,0.00016285]
[1765410980737,0.084885,92106.0,92105.0,0.00016285]
[1765410981838,0.085885,92106.0,92105.0,0.01116285]
[1765410982240,0.085885,92106.0,92105.0,0.04978329]
[1765410982839,0.085885,92106.0,92105.0,0.10675329]
[1765410983039,0.085885,92106.0,92105.0,0.06813285]
[1765410983234,0.085885,92106.0,92105.0,0.10675329]
[1765410983435,0.086885,92106.0,92105.0,0.07813285]
[1765410985046,0.086885,92106.0,92105.0,0.02116285]
[1765410985434,0.086885,92106.0,92105.0,0.07963703]
[1765410986036,0.086885,92106.0,92105.0,0.05003285]
[1765410986237,0.086885,92106.0,92105.0,0.13660703]
[1765410986441,0.086885,92106.0,92105.0,0.07813285]
[1765410987348,0.086885,92106.0,92105.0,0.05003285]
[1765410987533,0.086885,92106.0,92105.0,0.02116285]
[1765410987732,0.040645,92106.0,92105.0,0.07813285]
[1765410987944,0.069855,92106.0,92105.0,0.07813285]
[1765410989146,0.086885,92106.0,92105.0,0.07813285]
[1765410991150,0.086885,92106.0,92105.0,0.09510568]
[1765410991644,0.069855,92106.0,92105.0,0.09510568]
[1765410991844,0.069855,92106.0,92105.0,0.17287117]
[1765410992047,0.069855,92106.0,92105.0,0.09510568]
[1765410992349,0.069855,92106.0,92105.0,0.13421083]
[1765410993840,0.086885,92106.0,92105.0,0.13421083]
[1765410994042,0.002,92106.0,92105.0,0.13421083]
[1765410994348,0.002,92106.0,92105.0,0.21197632]
[1765410994549,0.002,92106.0,92105.0,0.13421083]
[1765410994949,0.3608,92112.0,92111.0,0.05628]
[1765410995249,0.3608,92112.0,92111.0,0.12321248]
[1765410995751,0.0393043,92113.0,92112.0,0.05628]
[1765410995956,0.0393043,92113.0,92112.0,0.11235798]
[1765410997147,0.0393043,92113.0,92112.0,0.11335798]
[1765410997354,0.0393043,92113.0,92112.0,0.11020111]
[1765410997950,0.00108561,92115.0,92114.0,0.05628]
[1765410998153,0.00108561,92115.0,92114.0,0.10920111]
[1765410999053,0.05736561,92115.0,92114.0,0.10920111]
[1765410999354,0.05936561,92115.0,92114.0,0.11020111]
[1765411000452,0.05936561,92115.0,92114.0,0.08102111]
[1765411000952,0.03153561,92115.0,92114.0,0.11020111]
[1765411001157,0.00308561,92115.0,92114.0,0.11020111]
[1765411001547,0.03153561,92115.0,92114.0,0.11020111]
[1765411001761,0.05936561,92115.0,92114.0,0.11020111]
[1765411002957,0.00308561,92115.0,92114.0,0.11020111]
[1765411003258,0.05936561,92115.0,92114.0,0.11020111]
[1765411004349,0.00308561,92115.0,92114.0,0.11020111]
[1765411011162,0.00308561,92115.0,92114.0,0.16870772]
[1765411011550,0.00308561,92115.0,92114.0,0.17956182]
[1765411012262,0.00308561,92115.0,92114.0,0.12105521]
[1765411014148,0.03153561,92115.0,92114.0,0.12105521]
[1765411014352,0.05936561,92115.0,92114.0,0.12105521]
[1765411014553,0.05936561,92115.0,92114.0,0.11020111]
[1765411015259,0.05936561,92115.0,92114.0,0.17955932]
[1765411015757,0.05936561,92115.0,92114.0,0.12105521]
[1765411016062,0.05936561,92115.0,92114.0,0.17956207]
[1765411016263,0.07639561,92115.0,92114.0,0.05392111]
[1765411016463,0.43719561,92115.0,92114.0,0.09293077]
[1765411016650,0.43719561,92115.0,92114.0,0.05392111]
[1765411017067,0.43719561,92115.0,92114.0,0.03694828]
[1765411017868,0.43719561,92115.0,92114.0,0.09322828]
[1765411020165,0.43719561,92115.0,92114.0,0.03694828]
[1765411020554,0.43719561,92115.0,92114.0,0.03573633]
[1765411024865,0.43719561,92115.0,92105.0,0.00016285]
[1765411024866,0.068945,92106.0,92105.0,0.00016285]
[1765411025064,0.429745,92106.0,92105.0,0.00016285]
[1765411026166,0.430745,92106.0,92105.0,0.01016285]
[1765411026672,0.430745,92106.0,92105.0,0.06667285]
[1765411027272,0.431745,92106.0,92105.0,0.05016285]
[1765411028571,0.431745,92106.0,92105.0,0.02116285]
[1765411029374,0.431745,92106.0,92105.0,0.07767285]
[1765411036972,0.431745,92106.0,92105.0,0.02116285]
[1765411037880,0.431745,92106.0,92105.0,0.04925285]
[1765411038975,0.0667668,92091.0,92089.0,0.03900966]
[1765411039171,0.0667668,92091.0,92090.0,0.03629535]
[1765411039370,0.0667668,92091.0,92065.0,0.0184162]
[1765411039371,0.0667685,92077.0,92076.0,0.05561]
[1765411039575,0.0667685,92077.0,92076.0,0.09180172]
[1765411040878,0.0677685,92077.0,92076.0,0.10280172]
[1765411041283,0.0687685,92077.0,92076.0,0.11280172]
[1765411048987,0.0687685,92077.0,92076.0,0.05719172]
[1765411049176,0.0687685,92077.0,92076.0,0.11210172]
[1765411049378,0.0681285,92077.0,92076.0,0.11210172]
[1765411049976,0.0681285,92077.0,92076.0,0.05719172]
[1765411051091,0.4289285,92077.0,92076.0,0.05719172]
[1765411051982,0.4289285,92077.0,92076.0,0.08467172]
[1765411052183,0.4289285,92077.0,92076.0,0.11210172]
[1765411055090,0.4289285,92077.0,92076.0,0.05719172]
[1765411056002,0.4289285,92077.0,92076.0,0.08467172]
[1765411056291,0.0681285,92077.0,92076.0,0.08467172]
[1765411056496,0.4289285,92077.0,92076.0,0.08467172]
[1765411057590,0.4289285,92077.0,92076.0,0.11210172]
[1765411058296,0.4289285,92077.0,92076.0,0.14133717]
[1765411058494,0.002,92077.0,92076.0,0.14133717]
[1765411058699,0.00016285,92086.0,92085.0,0.0824475]
[1765411058890,0.00016285,92086.0,92085.0,0.47943922]
[1765411059597,0.02775285,92086.0,92085.0,0.47943922]
[1765411059992,0.03575285,92086.0,92085.0,0.48043922]
[1765411063198,0.00816285,92086.0,92085.0,0.48043922]
[1765411063406,0.00816285,92086.0,92085.0,0.49741332]
[1765411064800,0.00316285,92086.0,92085.0,0.50041332]
[1765411064989,0.00416285,92086.0,92085.0,0.50041332]
[1765411065603,0.00216285,92086.0,92085.0,0.50241332]
[1765411066001,0.00116285,92086.0,92085.0,0.49941332]
[1765411066206,0.00216285,92086.0,92085.0,0.50641332]
[1765411068106,0.00216285,92086.0,92085.0,0.48943922]
[1765411069308,0.00216285,92086.0,92085.0,0.50641276]
[1765411069508,0.00216285,92086.0,92085.0,0.48943922]
[1765411070795,0.00216285,92086.0,92085.0,0.50641266]
[1765411071009,0.00216285,92086.0,92085.0,0.48943922]
[1765411071707,0.00216285,92086.0,92085.0,0.50641266]
[1765411072010,0.05731285,92086.0,92085.0,0.48973266]
[1765411072206,0.05731285,92086.0,92085.0,0.97687922]
[1765411074112,0.02975285,92086.0,92085.0,0.97687922]
[1765411074310,0.00216285,92086.0,92085.0,0.97687922]
[1765411076710,0.00216285,92086.0,92085.0,0.47275922]
[1765411077013,0.00216285,92086.0,92085.0,0.97687922]
[1765411077213,0.00216285,92086.0,92085.0,0.47275922]
[1765411077416,0.00216285,92086.0,92085.0,0.97687922]
[1765411077916,0.00216285,92086.0,92085.0,0.99355922]
[1765411079518,0.05880285,92086.0,92085.0,0.99355922]
[1765411080109,0.03102285,92086.0,92085.0,0.99355922]
[1765411080822,0.05880285,92086.0,92085.0,0.99355922]
[1765411081003,0.05880285,92086.0,92085.0,0.97687922]
[1765411081409,0.03102285,92086.0,92085.0,0.99405922]
[1765411081604,0.00216285,92086.0,92085.0,0.99405922]
[1765411082019,0.00216285,92086.0,92085.0,0.99401922]
[1765411083423,0.05880285,92086.0,92085.0,1.01099303]
[1765411083605,0.06966025,92086.0,92085.0,1.01099303]
[1765411086520,0.06966025,92086.0,92085.0,0.47887553]
[1765411087014,0.06966025,92086.0,92085.0,0.96590172]
[1765411087213,0.06966025,92086.0,92085.0,0.97675922]
[1765411087414,0.06966025,92086.0,92085.0,0.99373384]
[1765411087618,0.06966025,92086.0,92085.0,0.97675922]
[1765411088126,0.06966025,92086.0,92085.0,0.96590172]
[1765411088316,0.06966025,92086.0,92085.0,0.98287662]
[1765411091930,0.06966025,92086.0,92085.0,0.47887662]
[1765411092237,0.06966025,92086.0,92085.0,0.98291662]
[1765411094425,0.06966025,92086.0,92085.0,1.04152673]
[1765411094626,0.06966025,92086.0,92085.0,0.53748673]
[1765411094826,0.06966025,92086.0,92085.0,1.04152673]
[1765411097432,0.06966025,92086.0,92085.0,0.68072673]
[1765411097832,0.06966025,92086.0,92085.0,0.62211662]
[1765411098235,0.06966025,92086.0,92085.0,0.68072673]
[1765411098832,0.06966025,92086.0,92085.0,0.17668673]
[1765411099035,0.06966025,92086.0,92085.0,0.68072673]
[1765411099229,0.06966025,92086.0,92085.0,0.62211662]
[1765411099930,0.46966025,92086.0,92085.0,0.01697482]
[1765411100134,0.0831405,92060.0,92059.0,0.09593381]
[1765411100327,0.05563,92048.0,92047.0,0.07814799]
[1765411100630,0.0664927,92041.0,92040.0,0.00108649]
[1765411102039,0.0664938,92032.0,92031.0,0.00016295]
[1765411102237,0.4272938,92032.0,92031.0,0.05622295]
[1765411102634,0.51246485,92032.0,92031.0,0.05622295]
[1765411103138,0.4272938,92032.0,92031.0,0.05622295]
[1765411103339,0.4322938,92032.0,92031.0,0.05622295]
[1765411104240,0.4047938,92032.0,92031.0,0.05622295]
[1765411104429,0.3826638,92032.0,92031.0,0.05622295]
[1765411107735,0.39993,92032.0,92031.0,0.05622295]
[1765411108548,0.3718,92032.0,92031.0,0.05622295]
[1765411108739,0.3608,92041.0,92031.0,0.05622295]
[1765411109035,0.4853719,92041.0,92040.0,0.1577228]
[1765411109334,0.3608,92041.0,92040.0,0.1577228]
[1765411109833,0.3688,92041.0,92040.0,0.1577228]
[1765411110039,0.3758,92041.0,92040.0,0.1577228]
[1765411110835,0.52283,92041.0,92040.0,0.1577228]
[1765411111535,0.51483,92041.0,92040.0,0.1577228]
[1765411111739,0.52083,92041.0,92040.0,0.1577228]
[1765411112534,0.51783,92041.0,92040.0,0.1587228]
[1765411112848,0.51783,92041.0,92040.0,0.14786]
[1765411113036,0.51183,92041.0,92040.0,0.14786]
[1765411113339,0.51483,92041.0,92040.0,0.1597228]
[1765411114044,0.51083,92041.0,92040.0,0.14786]
[1765411114341,0.3678,92041.0,92040.0,0.14886]
[1765411116445,0.51483,92041.0,92040.0,0.14886]
[1765411117340,0.51483,92041.0,92040.0,0.07384]
[1765411118144,0.51483,92041.0,92040.0,0.14886]
[1765411119047,0.3678,92041.0,92040.0,0.14886]
[1765411123558,0.44175,92041.0,92040.0,0.14886]
[1765411124741,0.3678,92041.0,92040.0,0.14886]
[1765411126042,0.51483,92041.0,92040.0,0.14886]
[1765411126248,0.53956726,92041.0,92040.0,0.002]
[1765411128041,0.53956726,92041.0,92040.0,0.07384]
[1765411131952,0.53956726,92041.0,92040.0,0.14886]
[1765411135144,0.53956726,92041.0,92040.0,0.07384]
[1765411135755,0.1578938,92032.0,92031.0,0.00016295]
[1765411136053,0.90423106,92032.0,92031.0,0.00016295]
[1765411137246,0.90523106,92032.0,92031.0,0.00016295]
[1765411137555,0.98256206,92032.0,92031.0,0.00016295]
[1765411137746,0.90723106,92032.0,92031.0,0.00216295]
[1765411138150,0.98456206,92032.0,92031.0,0.00216295]
[1765411138361,0.90723106,92032.0,92031.0,0.00216295]
[1765411138574,0.1550664,92010.0,91995.0,0.0108681]
[1765411138765,0.1550664,92010.0,91973.0,0.04136]
[1765411138766,0.17980366,92010.0,91998.0,0.0108677]
[1765411139248,0.17980366,92010.0,92001.0,0.0108674]
[1765411139450,0.54060366,92010.0,92001.0,0.0108674]
[1765411140057,0.54160366,92010.0,92001.0,0.0108674]
[1765411140761,0.53273726,92010.0,92009.0,0.13609311]